[Event "DVM U12w 2023"]
[Site "Magdeburg"]
[Date "2023.12.29"]
[Round "6"]
[White "Rafikova, Ailin"]
[Black "Schirmbeck, Lilian"]
[Result "0-1"]
[WhiteElo "1399"]
[BlackElo "1585"]
[PlyCount "118"]
[EventDate "2022.12.27"]
[EventType "team-tourn"]
[EventRounds "7"]
[EventCountry "GER"]
[TimeControl "40/5400+30:1800+30"]
[WhiteClock "0:10:44"]
[BlackClock "0:07:56"]

1. e4 {[%emt 0:00:05]} c6 {[%emt 0:00:03]} 2. Nc3 {[%emt 0:00:17]} d5 {[%emt 0:00:09]} 3. Qf3 {[%emt 0:00:32]} d4 {[%emt 0:09:03]} 4. Bc4 {[%emt 0:01:54]} Nf6 {[%emt 0:03:38]} 5. Nce2 {[%emt 0:02:58]} e5 {[%emt 0:01:05]} 6. d3 {[%emt 0:01:13]} h5 {[%emt 0:08:30]} 7. Qg3 {[%emt 0:17:40]} Nbd7 {[%emt 0:07:42]} 8. h3 {[%emt 0:14:52]} c5 {[%emt 0:05:49]} 9. f4 {[%emt 0:06:52]} h4 {[%emt 0:01:35]} 10. Qf2 {[%emt 0:05:12]} Bd6 {[%emt 0:04:54]} 11. f5 {[%emt 0:02:34]} b5 {[%emt 0:01:17]} 12. Bb3 {[%emt 0:03:44]} Qc7 {[%emt 0:02:29]} 13. a3 {[%emt 0:05:32]} c4 {[%emt 0:01:47]} 14. Ba2 {[%emt 0:00:36]} Nc5 {[%emt 0:07:49]} 15. Qf3 {[%emt 0:03:45]} Bb7 {[%emt 0:03:54]} 16. b4 {[%emt 0:02:29]} Ncd7 {[%emt 0:02:27]} 17. Bd2 {[%emt 0:07:17]} Rc8 {[%emt 0:11:37]} 18. Bb1 {[%emt 0:08:30]} c3 {[%emt 0:05:59]} 19. Bg5 {[%emt 0:02:55]} Ra8 {[%emt 0:03:58]} 20. Bxf6 {[%emt 0:00:57]} Nxf6 {[%emt 0:01:05]} 21. Nc1 {[%emt 0:03:14]} a5 {[%emt 0:02:54]} 22. Nb3 {[%emt 0:01:26]} axb4 {[%emt 0:00:18]} 23. axb4 {[%emt 0:01:05]} Rxa1 {[%emt 0:00:45]} 24. Nxa1 {[%emt 0:00:04]} Bxb4 {[%emt 0:00:09]} 25. Nb3 {[%emt 0:01:10]} Bc6 {[%emt 0:01:41]} 26. g3 {[%emt 0:01:16]} Qa7 {[%emt 0:04:41]} 27. Ne2 {[%emt 0:01:44]} Nd7 {[%emt 0:02:22]} 28. gxh4 {[%emt 0:01:14]} Nc5 {[%emt 0:01:31]} 29. Nec1 {[%emt 0:01:27]} Qa3 {[%emt 0:04:02]} 30. Nxc5 {[%emt 0:00:32]} Qxc1+ {[%emt 0:00:16]} 31. Kf2 {[%emt 0:00:27]} Qd2+ {[%emt 0:00:04]} 32. Kg3 {[%emt 0:00:16]} Bxc5 {[%emt 0:00:20]} 33. Rd1 {[%emt 0:00:29]} Qh6 {[%emt 0:00:14]} 34. Qg4 {[%emt 0:00:10]} Be7 {[%emt 0:00:19]} 35. Ba2 {[%emt 0:00:19]} Qe3+ {[%emt 0:00:59]} 36. Qf3 {[%emt 0:00:10]} Qxf3+ {[%emt 0:00:32]} 37. Kxf3 {[%emt 0:00:04]} Rxh4 {[%emt 0:00:10]} 38. Kg3 {[%emt 0:00:10]} Rf4 {[%emt 0:00:14]} 39. Bb3 {[%emt 0:00:12]} Bh4+ {[%emt 0:00:30]} 40. Kg2 {[%emt 0:00:08]} Rxf5 {[%emt 0:00:12]} 41. Kh1 {[%emt 0:30:20]} Rf2 {[%emt 0:30:22]} 42. Rg1 {[%emt 0:00:18]} g5 {[%emt 0:00:27]} 43. Rd1 {[%emt 0:00:20]} Bd7 {[%emt 0:00:22]} 44. Ra1 {[%emt 0:00:27]} Be6 {[%emt 0:00:26]} 45. Bxe6 {[%emt 0:00:15]} fxe6 {[%emt 0:00:03]} 46. Rb1 {[%emt 0:00:10]} Rxc2 {[%emt 0:00:12]} 47. Rxb5 {[%emt 0:00:07]} Bg3 {[%emt 0:00:26]} 48. Rb1 {[%emt 0:00:14]} Rd2 {[%emt 0:00:08]} 49. h4 {[%emt 0:00:13]} gxh4 {[%emt 0:00:21]} 50. Rb8+ {[%emt 0:00:05]} Ke7 {[%emt 0:00:07]} 51. Rb7+ {[%emt 0:00:04]} Kf6 {[%emt 0:00:05]} 52. Rb1 {[%emt 0:00:18]} c2 {[%emt 0:00:25]} 53. Rf1+ {[%emt 0:00:03]} Kg7 {[%emt 0:00:08]} 54. Kg1 {[%emt 0:00:09]} Rd1 {[%emt 0:00:12]} 55. Kg2 {[%emt 0:00:07]} Rxf1 {[%emt 0:00:25]} 56. Kh3 {[%emt 0:00:07]} c1=Q {[%emt 0:00:20]} 57. Kg4 {[%emt 0:00:13]} Rf4+ {[%emt 0:00:20]} 58. Kh5 {[%emt 0:00:10]} Qd1+ {[%emt 0:00:05]} 59. Kg5 {[%emt 0:00:05]} Qg4# {[%emt 0:00:07] normal} 0-1

[Event "DVM U12w 2023"]
[Site "Magdeburg"]
[Date "2023.12.29"]
[Round "6"]
[White "Burchardi, Helena"]
[Black "Leicher, Anna"]
[Result "1-0"]
[WhiteElo "1370"]
[BlackElo "1279"]
[PlyCount "71"]
[EventDate "2022.12.27"]
[EventType "team-tourn"]
[EventRounds "7"]
[EventCountry "GER"]
[TimeControl "40/5400+30:1800+30"]
[WhiteClock "1:08:36"]
[BlackClock "0:49:34"]

1. e4 {[%emt 0:00:03]} e5 {[%emt 0:00:06]} 2. Nf3 {[%emt 0:00:07]} Nc6 {[%emt 0:00:02]} 3. Bc4 {[%emt 0:00:08]} Bc5 {[%emt 0:00:03]} 4. c3 {[%emt 0:00:07]} Nf6 {[%emt 0:00:07]} 5. d4 {[%emt 0:00:08]} exd4 {[%emt 0:00:12]} 6. O-O {[%emt 0:00:11]} O-O {[%emt 0:00:46]} 7. cxd4 {[%emt 0:00:09]} Bb6 {[%emt 0:00:11]} 8. d5 {[%emt 0:00:12]} Ne7 {[%emt 0:01:17]} 9. e5 {[%emt 0:00:24]} Ne4 {[%emt 0:00:27]} 10. Qc2 {[%emt 0:02:10]} Nc5 {[%emt 0:00:42]} 11. Bg5 {[%emt 0:01:02]} d6 {[%emt 0:00:56]} 12. Re1 {[%emt 0:01:43]} Bf5 {[%emt 0:00:27]} 13. Qe2 {[%emt 0:03:57]} Qd7 {[%emt 0:14:04]} 14. exd6 {[%emt 0:01:16]} Ng6 {[%emt 0:04:29]} 15. Ne5 {[%emt 0:04:58]} Nxe5 {[%emt 0:01:06]} 16. Qxe5 {[%emt 0:01:02]} f6 {[%emt 0:01:04]} 17. Qg3 {[%emt 0:03:36]} Ne4 {[%emt 0:02:36]} 18. Rxe4 {[%emt 0:01:38]} Bxe4 {[%emt 0:01:43]} 19. Nc3 {[%emt 0:00:25]} fxg5 {[%emt 0:04:19]} 20. Nxe4 {[%emt 0:02:04]} Qf5 {[%emt 0:00:36]} 21. Qf3 {[%emt 0:01:53]} Qxf3 {[%emt 0:02:47]} 22. gxf3 {[%emt 0:00:08]} Rxf3 {[%emt 0:02:36]} 23. dxc7 {[%emt 0:00:40]} Kh8 {[%emt 0:04:28]} 24. d6 {[%emt 0:02:39]} Bxc7 {[%emt 0:01:34]} 25. dxc7 {[%emt 0:00:18]} Rc8 {[%emt 0:02:03]} 26. Nxg5 {[%emt 0:01:17]} Rf4 {[%emt 0:03:30]} 27. Rd1 {[%emt 0:03:19]} g6 {[%emt 0:01:29]} 28. Rd8+ {[%emt 0:00:32]} Rf8 {[%emt 0:00:15]} 29. Be6 {[%emt 0:01:30]} Rcxd8 {[%emt 0:01:45]} 30. Nf7+ {[%emt 0:00:55]} Kg7 {[%emt 0:00:23]} 31. Nxd8 {[%emt 0:00:11]} Rxd8 {[%emt 0:01:03]} 32. cxd8=Q {[%emt 0:00:18]} b5 {[%emt 0:00:06]} 33. Qe7+ {[%emt 0:00:15]} Kh6 {[%emt 0:00:06]} 34. f4 {[%emt 0:00:17]} b4 {[%emt 0:00:18]} 35. Bg4 {[%emt 0:00:08]} g5 {[%emt 0:00:50]} 36. Qf6# {[%emt 0:00:14] normal} 1-0

[Event "DVM U12w 2023"]
[Site "Magdeburg"]
[Date "2023.12.29"]
[Round "6"]
[White "Hladeniuk, Yelyzaveta"]
[Black "Ulianova, Anna"]
[Result "1-0"]
[WhiteElo "1362"]
[BlackElo "1036"]
[PlyCount "53"]
[EventDate "2022.12.27"]
[EventType "team-tourn"]
[EventRounds "7"]
[EventCountry "GER"]
[TimeControl "40/5400+30:1800+30"]
[WhiteClock "0:54:56"]
[BlackClock "0:36:07"]

1. d4 {[%emt 0:00:04]} Nf6 {[%emt 0:00:08]} 2. c4 {[%emt 0:00:11]} c5 {[%emt 0:00:27]} 3. e3 {[%emt 0:01:57]} b6 {[%emt 0:05:52]} 4. Nf3 {[%emt 0:00:41]} e6 {[%emt 0:00:29]} 5. Be2 {[%emt 0:00:38]} d5 {[%emt 0:00:35]} 6. O-O {[%emt 0:01:18]} Bd6 {[%emt 0:00:57]} 7. b3 {[%emt 0:01:22]} O-O {[%emt 0:01:58]} 8. Bb2 {[%emt 0:00:36]} Bb7 {[%emt 0:02:26]} 9. Qc2 {[%emt 0:03:06]} Ne4 {[%emt 0:02:51]} 10. Bd3 {[%emt 0:01:44]} f5 {[%emt 0:01:02]} 11. Nc3 {[%emt 0:02:22]} Qe8 {[%emt 0:08:12]} 12. Nb5 {[%emt 0:01:42]} Qh5 {[%emt 0:02:22]} 13. Nxd6 {[%emt 0:07:15]} Nxd6 {[%emt 0:00:50]} 14. Qc3 {[%emt 0:02:18]} Ne4 {[%emt 0:04:22]} 15. Bxe4 {[%emt 0:01:13]} fxe4 {[%emt 0:00:41]} 16. dxc5 {[%emt 0:01:01]} Qg6 {[%emt 0:01:48]} 17. Nd4 {[%emt 0:02:36]} e5 {[%emt 0:02:10]} 18. Nb5 {[%emt 0:00:31]} Nc6 {[%emt 0:01:46]} 19. cxb6 {[%emt 0:01:43]} axb6 {[%emt 0:00:33]} 20. cxd5 {[%emt 0:01:02]} Nd8 {[%emt 0:01:05]} 21. Qxe5 {[%emt 0:01:13]} Nf7 {[%emt 0:00:55]} 22. Qd4 {[%emt 0:02:25]} Nh6 {[%emt 0:01:51]} 23. Qe5 {[%emt 0:04:17]} Rae8 {[%emt 0:04:04]} 24. Qd6 {[%emt 0:04:37]} Qg5 {[%emt 0:03:24]} 25. Qg3 {[%emt 0:01:26]} Qe7 {[%emt 0:04:36]} 26. Qc7 {[%emt 0:01:00]} Qg5 {[%emt 0:11:59]} 27. Qxb7 {[%emt 0:00:46] normal} 1-0

[Event "DVM U12w 2023"]
[Site "Magdeburg"]
[Date "2023.12.29"]
[Round "6"]
[White "Busch, Lara Sophie"]
[Black "Shakhimardanova, Nigina"]
[Result "1-0"]
[WhiteElo "1330"]
[BlackElo "1067"]
[PlyCount "97"]
[EventDate "2022.12.27"]
[EventType "team-tourn"]
[EventRounds "7"]
[EventCountry "GER"]
[TimeControl "40/5400+30:1800+30"]
[WhiteClock "1:02:13"]
[BlackClock "1:23:12"]

1. e4 {[%emt 0:00:01]} e5 {[%emt 0:00:05]} 2. Nf3 {[%emt 0:00:09]} Nf6 {[%emt 0:00:06]} 3. Nxe5 {[%emt 0:00:13]} d6 {[%emt 0:00:35]} 4. Nf3 {[%emt 0:00:09]} Bg4 {[%emt 0:00:15]} 5. Nc3 {[%emt 0:00:21]} d5 {[%emt 0:00:19]} 6. exd5 {[%emt 0:00:54]} Nxd5 {[%emt 0:00:08]} 7. Be2 {[%emt 0:01:05]} Bb4 {[%emt 0:00:25]} 8. h3 {[%emt 0:02:05]} Be6 {[%emt 0:00:33]} 9. Nxd5 {[%emt 0:01:05]} Qxd5 {[%emt 0:00:16]} 10. c3 {[%emt 0:00:37]} Ba5 {[%emt 0:00:29]} 11. O-O {[%emt 0:02:20]} c5 {[%emt 0:00:08]} 12. Qa4+ {[%emt 0:00:50]} Nc6 {[%emt 0:00:18]} 13. Bb5 {[%emt 0:01:03]} Bc7 {[%emt 0:00:20]} 14. Bxc6+ {[%emt 0:00:27]} bxc6 {[%emt 0:00:14]} 15. d4 {[%emt 0:00:50]} a5 {[%emt 0:00:39]} 16. dxc5 {[%emt 0:00:58]} Qxc5 {[%emt 0:00:30]} 17. Nd4 {[%emt 0:01:24]} Bd7 {[%emt 0:00:52]} 18. Re1+ {[%emt 0:00:28]} Be5 {[%emt 0:00:14]} 19. f4 {[%emt 0:02:16]} O-O {[%emt 0:00:08]} 20. Rxe5 {[%emt 0:01:19]} Qd6 {[%emt 0:00:04]} 21. Qc2 {[%emt 0:01:31]} g6 {[%emt 0:00:43]} 22. b3 {[%emt 0:00:59]} Rad8 {[%emt 0:01:39]} 23. a4 {[%emt 0:00:52]} c5 {[%emt 0:00:35]} 24. Ba3 {[%emt 0:00:55]} Rc8 {[%emt 0:00:11]} 25. Kh1 {[%emt 0:02:14]} Qb6 {[%emt 0:00:23]} 26. Nf3 {[%emt 0:01:29]} Bf5 {[%emt 0:00:51]} 27. Qb2 {[%emt 0:02:19]} Rfd8 {[%emt 0:00:23]} 28. Nd2 {[%emt 0:01:23]} Rd7 {[%emt 0:00:43]} 29. Nc4 {[%emt 0:01:42]} Qa7 {[%emt 0:00:19]} 30. Qf2 {[%emt 0:01:02]} Rdc7 {[%emt 0:01:08]} 31. Nd6 {[%emt 0:00:41]} Rd8 {[%emt 0:01:26]} 32. Nb5 {[%emt 0:00:42]} Qb8 {[%emt 0:00:46]} 33. Nxc7 {[%emt 0:00:23]} Qxc7 {[%emt 0:00:07]} 34. Qxc5 {[%emt 0:01:24]} Qd7 {[%emt 0:00:55]} 35. Rae1 {[%emt 0:01:52]} Kg7 {[%emt 0:01:11]} 36. Re7 {[%emt 0:01:16]} Qd2 {[%emt 0:00:34]} 37. Qd4+ {[%emt 0:00:27]} Rxd4 {[%emt 0:01:35]} 38. cxd4 {[%emt 0:00:13]} Be6 {[%emt 0:00:36]} 39. R1xe6 {[%emt 0:00:30]} Qxd4 {[%emt 0:01:31]} 40. Re1 {[%emt 0:01:35]} Qc3 {[%emt 0:00:34]} 41. R7e3 {[%emt 0:31:47]} Qf6 {[%emt 0:31:05]} 42. g3 {[%emt 0:01:35]} Qf5 {[%emt 0:00:58]} 43. Kh2 {[%emt 0:01:04]} Qc2+ {[%emt 0:00:08]} 44. R1e2 {[%emt 0:00:31]} Qc8 {[%emt 0:01:16]} 45. Bb2+ {[%emt 0:00:43]} Kh6 {[%emt 0:00:47]} 46. Re5 {[%emt 0:02:08]} Qa6 {[%emt 0:01:26]} 47. g4 {[%emt 0:01:04]} f6 {[%emt 0:00:55]} 48. Ba3 {[%emt 0:01:37]} fxe5 {[%emt 0:01:55]} 49. Bf8# {[%emt 0:00:15] normal} 1-0

[Event "DVM U12w 2023"]
[Site "Magdeburg"]
[Date "2023.12.29"]
[Round "6"]
[White "Kuebart, Ela Marie"]
[Black "Albrecht, Sidney Jenna"]
[Result "0-1"]
[WhiteElo "1325"]
[BlackElo "1188"]
[PlyCount "28"]
[EventDate "2022.12.27"]
[EventType "team-tourn"]
[EventRounds "7"]
[EventCountry "GER"]
[TimeControl "40/5400+30:1800+30"]
[WhiteClock "1:26:45"]
[BlackClock "1:29:24"]

1. d4 {[%emt 0:00:10]} Nf6 {[%emt 0:00:05]} 2. c3 {[%emt 0:00:09]} g6 {[%emt 0:00:05]} 3. e3 {[%emt 0:00:17]} Bg7 {[%emt 0:00:05]} 4. f4 {[%emt 0:00:31]} O-O {[%emt 0:00:10]} 5. Nf3 {[%emt 0:00:30]} d6 {[%emt 0:00:36]} 6. Bd3 {[%emt 0:00:52]} Nbd7 {[%emt 0:00:33]} 7. O-O {[%emt 0:00:18]} e5 {[%emt 0:01:12]} 8. fxe5 {[%emt 0:00:47]} dxe5 {[%emt 0:00:17]} 9. dxe5 {[%emt 0:01:01]} Ng4 {[%emt 0:00:15]} 10. e6 {[%emt 0:01:21]} fxe6 {[%emt 0:00:30]} 11. Ng5 {[%emt 0:00:43]} Qxg5 {[%emt 0:01:19]} 12. Rxf8+ {[%emt 0:00:30]} Nxf8 {[%emt 0:00:22]} 13. e4 {[%emt 0:00:37]} Qc5+ {[%emt 0:01:54]} 14. Kh1 {[%emt 0:02:59]} Nf2+ {[%emt 0:00:43] normal} 0-1

[Event "DVM U12w 2023"]
[Site "Magdeburg"]
[Date "2023.12.29"]
[Round "6"]
[White "Werner, Amelie"]
[Black "Xu, Dorothea Sicheng"]
[Result "0-1"]
[WhiteElo "1311"]
[BlackElo "1118"]
[PlyCount "110"]
[EventDate "2022.12.27"]
[EventType "team-tourn"]
[EventRounds "7"]
[EventCountry "GER"]
[TimeControl "40/5400+30:1800+30"]
[WhiteClock "1:26:54"]
[BlackClock "1:13:22"]

1. e4 {[%emt 0:00:02]} e5 {[%emt 0:00:04]} 2. Nf3 {[%emt 0:00:05]} Nc6 {[%emt 0:00:05]} 3. Bc4 {[%emt 0:00:04]} Nf6 {[%emt 0:00:07]} 4. Ng5 {[%emt 0:00:04]} d5 {[%emt 0:00:06]} 5. exd5 {[%emt 0:00:04]} Na5 {[%emt 0:00:04]} 6. Bb5+ {[%emt 0:00:08]} c6 {[%emt 0:00:05]} 7. dxc6 {[%emt 0:00:05]} bxc6 {[%emt 0:00:06]} 8. Bd3 {[%emt 0:00:06]} Nd5 {[%emt 0:00:07]} 9. Nf3 {[%emt 0:00:11]} Bc5 {[%emt 0:00:27]} 10. O-O {[%emt 0:00:07]} O-O {[%emt 0:01:32]} 11. Nxe5 {[%emt 0:00:05]} Re8 {[%emt 0:00:43]} 12. Nc4 {[%emt 0:00:17]} h6 {[%emt 0:00:49]} 13. Nxa5 {[%emt 0:00:07]} Qxa5 {[%emt 0:00:10]} 14. Nc3 {[%emt 0:00:07]} Be6 {[%emt 0:05:35]} 15. Bc4 {[%emt 0:01:13]} Nxc3 {[%emt 0:01:41]} 16. dxc3 {[%emt 0:00:11]} Bxc4 {[%emt 0:01:16]} 17. Re1 {[%emt 0:00:03]} Qb6 {[%emt 0:01:01]} 18. Be3 {[%emt 0:01:35]} Bxe3 {[%emt 0:01:16]} 19. Rxe3 {[%emt 0:00:05]} Rxe3 {[%emt 0:00:32]} 20. fxe3 {[%emt 0:00:05]} Qxe3+ {[%emt 0:00:16]} 21. Kh1 {[%emt 0:00:02]} Bd5 {[%emt 0:01:18]} 22. Qg1 {[%emt 0:07:01]} Qxg1+ {[%emt 0:00:38]} 23. Kxg1 {[%emt 0:00:07]} Rb8 {[%emt 0:00:22]} 24. b3 {[%emt 0:00:16]} a5 {[%emt 0:01:19]} 25. Rd1 {[%emt 0:00:26]} Kf8 {[%emt 0:01:51]} 26. Re1 {[%emt 0:00:13]} Re8 {[%emt 0:01:01]} 27. Rd1 {[%emt 0:00:09]} Re2 {[%emt 0:00:22]} 28. g3 {[%emt 0:00:15]} Rxc2 {[%emt 0:00:15]} 29. c4 {[%emt 0:00:07]} Bf3 {[%emt 0:01:48]} 30. Rd8+ {[%emt 0:00:11]} Ke7 {[%emt 0:00:37]} 31. Rd3 {[%emt 0:00:45]} Be4 {[%emt 0:01:53]} 32. Re3 {[%emt 0:00:09]} f5 {[%emt 0:01:15]} 33. g4 {[%emt 0:00:11]} Rg2+ {[%emt 0:01:00]} 34. Kf1 {[%emt 0:00:05]} Rxg4 {[%emt 0:00:42]} 35. h3 {[%emt 0:00:15]} Rf4+ {[%emt 0:00:52]} 36. Ke2 {[%emt 0:00:15]} Kd6 {[%emt 0:00:55]} 37. Rg3 {[%emt 0:00:19]} g5 {[%emt 0:01:29]} 38. Ke3 {[%emt 0:00:18]} Kc5 {[%emt 0:01:13]} 39. Rg1 {[%emt 0:00:10]} Rf3+ {[%emt 0:00:27]} 40. Ke2 {[%emt 0:00:17]} Rxh3 {[%emt 0:00:19]} 41. Kf2 {[%emt 0:30:29]} Kb4 {[%emt 0:31:45]} 42. Ra1 {[%emt 0:00:18]} Rf3+ {[%emt 0:01:04]} 43. Kg1 {[%emt 0:00:25]} h5 {[%emt 0:01:26]} 44. Kh2 {[%emt 0:00:15]} g4 {[%emt 0:00:37]} 45. a3+ {[%emt 0:00:13]} Kxb3 {[%emt 0:01:24]} 46. Rb1+ {[%emt 0:00:12]} Bxb1 {[%emt 0:00:06]} 47. Kg2 {[%emt 0:03:13]} Kxa3 {[%emt 0:00:27]} 48. Kh2 {[%emt 0:03:43]} Kb4 {[%emt 0:00:17]} 49. c5 {[%emt 0:01:01]} a4 {[%emt 0:00:04]} 50. Kg2 {[%emt 0:03:02]} a3 {[%emt 0:00:10]} 51. Kg1 {[%emt 0:00:09]} a2 {[%emt 0:00:06]} 52. Kg2 {[%emt 0:01:13]} a1=Q {[%emt 0:00:11]} 53. Kg1 {[%emt 0:00:18]} Qd4+ {[%emt 0:00:27]} 54. Kh1 {[%emt 0:00:09]} Rf1+ {[%emt 0:00:48]} 55. Kh2 {[%emt 0:00:11]} Qf2# {[%emt 0:00:08] normal} 0-1

[Event "DVM U12w 2023"]
[Site "Magdeburg"]
[Date "2023.12.29"]
[Round "6"]
[White "Fruth, Julia"]
[Black "Winkler, Frida"]
[Result "1/2-1/2"]
[WhiteElo "1296"]
[BlackElo "1298"]
[PlyCount "56"]
[EventDate "2022.12.27"]
[EventType "team-tourn"]
[EventRounds "7"]
[EventCountry "GER"]
[TimeControl "40/5400+30:1800+30"]
[WhiteClock "0:18:04"]
[BlackClock "0:40:05"]

1. e4 {[%emt 0:00:02]} d5 {[%emt 0:00:09]} 2. exd5 {[%emt 0:00:09]} Nf6 {[%emt 0:00:06]} 3. Nc3 {[%emt 0:02:06]} Nxd5 {[%emt 0:00:09]} 4. Nf3 {[%emt 0:02:01]} Bg4 {[%emt 0:02:35]} 5. Be2 {[%emt 0:02:07]} Nc6 {[%emt 0:02:04]} 6. d4 {[%emt 0:02:21]} g6 {[%emt 0:03:34]} 7. O-O {[%emt 0:03:01]} Bg7 {[%emt 0:01:18]} 8. Re1 {[%emt 0:05:12]} Qd7 {[%emt 0:04:46]} 9. a3 {[%emt 0:09:56]} O-O-O {[%emt 0:01:37]} 10. Nxd5 {[%emt 0:09:52]} Qxd5 {[%emt 0:00:52]} 11. c3 {[%emt 0:01:40]} Rd6 {[%emt 0:06:06]} 12. Qc2 {[%emt 0:07:01]} Bf5 {[%emt 0:03:48]} 13. Bd3 {[%emt 0:03:20]} Bxd3 {[%emt 0:00:36]} 14. Qxd3 {[%emt 0:00:48]} e5 {[%emt 0:00:27]} 15. c4 {[%emt 0:01:35]} Qe6 {[%emt 0:01:53]} 16. d5 {[%emt 0:00:48]} Qe7 {[%emt 0:00:27]} 17. Qe3 {[%emt 0:03:49]} Na5 {[%emt 0:02:54]} 18. Qe2 {[%emt 0:04:03]} f6 {[%emt 0:01:45]} 19. Qc2 {[%emt 0:04:22]} b6 {[%emt 0:01:16]} 20. Bd2 {[%emt 0:02:58]} Nb7 {[%emt 0:04:11]} 21. Nd4 {[%emt 0:03:48]} a6 {[%emt 0:05:20]} 22. Nc6 {[%emt 0:04:03]} Qf7 {[%emt 0:01:16]} 23. a4 {[%emt 0:04:40]} Nd8 {[%emt 0:02:28]} 24. Nb4 {[%emt 0:02:33]} a5 {[%emt 0:04:22]} 25. Nd3 {[%emt 0:01:07]} c5 {[%emt 0:03:00]} 26. b3 {[%emt 0:01:15]} e4 {[%emt 0:01:59]} 27. Nc1 {[%emt 0:00:59]} f5 {[%emt 0:00:48]} 28. Rb1 {[%emt 0:00:50]} Nb7 {[%emt 0:04:39] normal} 1/2-1/2

[Event "DVM U12w 2023"]
[Site "Magdeburg"]
[Date "2023.12.29"]
[Round "6"]
[White "Grunert, Greta"]
[Black "John, Linnea"]
[Result "0-1"]
[WhiteElo "1288"]
[BlackElo "1393"]
[PlyCount "120"]
[EventDate "2022.12.27"]
[EventType "team-tourn"]
[EventRounds "7"]
[EventCountry "GER"]
[TimeControl "40/5400+30:1800+30"]
[WhiteClock "1:06:45"]
[BlackClock "0:59:02"]

1. e4 {[%emt 0:00:03]} c5 {[%emt 0:00:06]} 2. Nf3 {[%emt 0:00:08]} Nc6 {[%emt 0:00:06]} 3. d4 {[%emt 0:00:07]} cxd4 {[%emt 0:00:05]} 4. Nxd4 {[%emt 0:00:07]} g6 {[%emt 0:00:04]} 5. c4 {[%emt 0:00:11]} Bg7 {[%emt 0:00:11]} 6. Be3 {[%emt 0:00:18]} Nf6 {[%emt 0:00:12]} 7. Nc3 {[%emt 0:00:23]} Ng4 {[%emt 0:00:55]} 8. Nxc6 {[%emt 0:07:42]} Nxe3 {[%emt 0:00:37]} 9. Nxd8 {[%emt 0:01:14]} Nxd1 {[%emt 0:00:37]} 10. Rxd1 {[%emt 0:00:27]} Bxc3+ {[%emt 0:01:02]} 11. bxc3 {[%emt 0:00:10]} Kxd8 {[%emt 0:00:27]} 12. c5 {[%emt 0:00:55]} Kc7 {[%emt 0:01:43]} 13. Bb5 {[%emt 0:00:59]} Rd8 {[%emt 0:02:28]} 14. O-O {[%emt 0:03:28]} b6 {[%emt 0:02:06]} 15. cxb6+ {[%emt 0:00:27]} axb6 {[%emt 0:00:10]} 16. a4 {[%emt 0:00:18]} Ba6 {[%emt 0:08:59]} 17. c4 {[%emt 0:00:59]} Bxb5 {[%emt 0:01:03]} 18. axb5 {[%emt 0:00:19]} Ra2 {[%emt 0:01:23]} 19. Rc1 {[%emt 0:01:12]} d6 {[%emt 0:02:13]} 20. Ra1 {[%emt 0:00:40]} Rda8 {[%emt 0:00:25]} 21. Rxa2 {[%emt 0:01:06]} Rxa2 {[%emt 0:00:13]} 22. Re1 {[%emt 0:01:34]} Rc2 {[%emt 0:02:21]} 23. h3 {[%emt 0:00:48]} Rxc4 {[%emt 0:00:53]} 24. e5 {[%emt 0:00:26]} d5 {[%emt 0:03:59]} 25. Ra1 {[%emt 0:01:45]} Kb7 {[%emt 0:00:22]} 26. Rd1 {[%emt 0:02:25]} Rc5 {[%emt 0:00:57]} 27. Rb1 {[%emt 0:00:49]} d4 {[%emt 0:03:17]} 28. Rb4 {[%emt 0:01:48]} Rd5 {[%emt 0:01:20]} 29. Kf1 {[%emt 0:06:08]} d3 {[%emt 0:05:48]} 30. Ke1 {[%emt 0:00:36]} Rxe5+ {[%emt 0:02:23]} 31. Kd2 {[%emt 0:01:59]} Rd5 {[%emt 0:03:10]} 32. Rb3 {[%emt 0:00:49]} Kc7 {[%emt 0:02:17]} 33. Rc3+ {[%emt 0:00:39]} Kd7 {[%emt 0:01:01]} 34. Rxd3 {[%emt 0:00:16]} Kd6 {[%emt 0:00:25]} 35. Kc3 {[%emt 0:01:42]} Rxd3+ {[%emt 0:00:33]} 36. Kxd3 {[%emt 0:00:10]} Kc5 {[%emt 0:00:56]} 37. Kc3 {[%emt 0:00:16]} Kxb5 {[%emt 0:00:07]} 38. Kb3 {[%emt 0:00:07]} e5 {[%emt 0:00:12]} 39. h4 {[%emt 0:02:00]} f5 {[%emt 0:00:12]} 40. g3 {[%emt 0:00:29]} f4 {[%emt 0:00:18]} 41. gxf4 {[%emt 0:30:25]} exf4 {[%emt 0:30:09]} 42. f3 {[%emt 0:02:35]} Kc5 {[%emt 0:00:13]} 43. Kc3 {[%emt 0:00:19]} Kd5 {[%emt 0:00:13]} 44. Kd3 {[%emt 0:00:37]} b5 {[%emt 0:00:14]} 45. Kc3 {[%emt 0:00:10]} h6 {[%emt 0:00:24]} 46. Kb4 {[%emt 0:00:32]} Kd4 {[%emt 0:00:20]} 47. Kxb5 {[%emt 0:00:13]} Ke3 {[%emt 0:01:33]} 48. Kc4 {[%emt 0:00:08]} Kxf3 {[%emt 0:00:13]} 49. Kd3 {[%emt 0:00:05]} Kg2 {[%emt 0:00:12]} 50. Ke4 {[%emt 0:00:10]} f3 {[%emt 0:00:04]} 51. Ke3 {[%emt 0:00:14]} f2 {[%emt 0:00:12]} 52. Kf4 {[%emt 0:00:19]} f1=Q+ {[%emt 0:00:04]} 53. Ke5 {[%emt 0:00:43]} Qf3 {[%emt 0:00:34]} 54. Ke6 {[%emt 0:00:14]} Qf5+ {[%emt 0:00:10]} 55. Ke7 {[%emt 0:00:10]} Kf3 {[%emt 0:00:11]} 56. Ke8 {[%emt 0:00:09]} Ke4 {[%emt 0:00:06]} 57. Ke7 {[%emt 0:00:06]} Ke5 {[%emt 0:00:06]} 58. h5 {[%emt 0:00:13]} gxh5 {[%emt 0:00:14]} 59. Ke8 {[%emt 0:00:15]} Kd6 {[%emt 0:00:10]} 60. Kd8 {[%emt 0:00:09]} Qf8# {[%emt 0:01:29] normal} 0-1